Cogmind - Beta 14 @@@ ROGUE MODE // 2024.10.02 @ 16:22:51 Player: Jay Result: Destroyed by D-53 Grenadier with Mini Grenade Launcher Performance ------------- Evolutions (0) 0 Regions Visited (2) 400 Robots Destroyed (7) 35 Value Destroyed (219) 219 Prototype IDs (0) 0 Alien Tech Used (0) 0 Bonus (0) 0 TOTAL SCORE: 654 Bonus ------- None Cogmind --------- Core Integrity 0/250 Matter 292/300 Energy 160/160 System Corruption 5% Temperature Cool (0) Movement Core (200) Ox3 Location -10/Mines Parts ------- > --- POWER (1) -------- Light Nuclear Core > --- PROPULSION (2) --- (None) > --- UTILITY (2) ------ Small Storage Unit > --- WEAPON (2) ------- (None) > --- INVENTORY (8) ---- Hover Unit Hover Unit Hover Unit Improved Terrain Scanner EM Pulse Gun Medium Laser Light Assault Rifle Datajack Peak State ------------ > --- POWER ------------ Light Nuclear Core > --- PROPULSION ------- Hover Unit Hover Unit > --- UTILITY ---------- Small Storage Unit Seismic Detector > --- WEAPON ----------- EM Pulse Gun > --- INVENTORY -------- Hover Unit Hover Unit Hover Unit Improved Terrain Scanner Medium Laser Assault Rifle Light Assault Rifle Datajack [Rating: 9] Favorites ----------- Power Ion Engine Engine Ion Engine Power Core Light Nuclear Core Propulsion Aluminum Leg Leg Aluminum Leg Hover Unit Hover Unit Utility Small Storage Unit Device Seismic Detector Storage Small Storage Unit Weapon EM Pulse Gun Energy Gun EM Pulse Gun Launcher Grenade Launcher Special Melee Weapon Datajack Build | -11 -10 -10 ------- Run | Yrd Mat Min Slots Evolved . | . . . Power . | . . . Propulsion . | . . . Utility . | . . . Weapon . | . . . Parts Attached 16 | 5 7 4 Power 4 | 1 2 1 Engine 2 | 1 1 . Core 2 | . 1 1 Reactor . | . . . Propulsion 6 | 2 2 2 Treads . | . . . Leg 2 | 2 . . Wheel . | . . . Hover 4 | . 2 2 Flight . | . . . Utility 2 | 1 . 1 Device 1 | . . 1 Storage 1 | 1 . . Processor . | . . . Hackware . | . . . Protection . | . . . Artifact . | . . . Weapon 4 | 1 3 . Energy Gun 2 | 1 1 . Energy Cannon . | . . . Ballistic Gun . | . . . Ballistic Cannon . | . . . Launcher 1 | . 1 . Special Weapon . | . . . Impact Weapon . | . . . Slashing Weapon . | . . . Piercing Weapon . | . . . Special Melee Weapon 1 | . 1 . Unidentified Prototypes . | . . . Corrupted Parts 1 | . . 1 System Corruption 5 | . . 5 Parts Lost 3 | . . 3 Power . | . . . Propulsion 2 | . . 2 Utility 1 | . . 1 Weapon . | . . . Highest Loss Streak 3 | . . 3 To Critical Strikes . | . . . Average Slot Usage (%) 81 | . 81 82 Engine 11 | . 13 8 Core 2 | . . 5 Leg 11 | . 16 . Hover 15 | . 10 26 Device 3 | . . 11 Storage 14 | . 14 14 Energy Gun 12 | . 14 8 Launcher 5 | . 7 . Special Melee Weapon 4 | . 3 7 Peak Build Rating 9 | 5 8 9 Average Rating 5 | 4 5 7 On Entrance 3 | . 5 6 Naked Turns . | . . . Heaviest Build 15 | 12 15 13 Greatest Support 20 | 20 20 12 Greatest Overweight (x) 4 | 2 4 3 Average Overweight (x) . | . . . Largest Inventory Capacity 8 | 8 8 8 Average Capacity 7 | 7 8 8 Most Carried 8 | 7 8 8 Average Carried 6 | 3 7 7 Final Capacity 8 | 8 8 8 Final Carried 8 | 7 6 8 Class Distribution -------------------- 100% | Mutant Dominant Class ---------------- Mutant | -10/Materials Mutant | -10/Mines Resources | -11 -10 -10 ----------- Run | Yrd Mat Min Matter Collected 370 | 169 121 80 Remotely . | . . . Salvage Created 224 | . 121 103 Parts 13 | . 3 10 Haulers Intercepted . | . . . Recyclers Shooed . | . . . Parts Field Recycled . | . . . Retrieved Matter . | . . . Parts Self-Destructed . | . . . Prevented . | . . . Kills | -11 -10 -10 ------- Run | Yrd Mat Min Combat Hostiles Destroyed 5 | . 3 2 Guns 2 | . . 2 AOE 3 | . 3 . Classes Destroyed 3 | . 2 1 Tunneler 1 | . . 1 Operator 1 | . 1 . Grunt 5 | . 3 2 Best Kill Streak 2 | . 2 2 Combat Bots Only 2 | . 2 2 Max Kills in Single Turn 2 | . 2 1 Gunslinging . | . . . Exploded 2 | . 2 . Melee . | . . . Uniques/NPCs Destroyed . | . . . Combat | -11 -10 -10 -------- Run | Yrd Mat Min Hostile Shots Fired 23 | . 4 19 Missed 5 | . 1 4 Damage Taken 526 | . 37 489 Core 285 | . . 285 Absorbed by Shields . | . . . Core Remaining (%) 100 | 100 . . Volleys Fired 24 | . 15 9 Largest 2 | . 2 1 Hottest 70 | . 70 40 Shots Fired 26 | . 17 9 Gun 24 | . 15 9 Cannon . | . . . Launcher 2 | . 2 . Special . | . . . Kinetic . | . . . Thermal 2 | . 2 . Explosive 2 | . 2 . Electromagnetic 22 | . 13 9 Robot Hit Streak 6 | . 6 6 Robot Miss Streak 4 | . 4 1 Penetration Max . | . . . Secondary Targets . | . . . Shots Hit Robots 18 | . 9 9 Core Hits 10 | . 5 5 Critical Kills . | . . . Critical Parts Destroyed . | . . . Critical Strikes . | . . . Melee Attacks 1 | . . 1 Impact . | . . . Slashing . | . . . Piercing . | . . . Sneak Attacks 1 | . . 1 Combat Hostiles . | . . . Follow-up Attacks . | . . . Damage Inflicted 362 | . 255 107 Guns 213 | . 106 107 Cannons . | . . . Explosions 149 | . 149 . Melee . | . . . Ramming . | . . . Kinetic . | . . . Thermal 74 | . 74 . Explosive 75 | . 75 . Electromagnetic 213 | . 106 107 Impact . | . . . Slashing . | . . . Piercing . | . . . Highest Corruption 5 | . . 5 Average Corruption 5 | . . 5 Corruption Purged . | . . . Corruption Blocked . | . . . Effects 2 | . . 2 Message Errors 1 | . . 1 Matter Fused 1 | . . 1 Overload Shots . | . . . Overflow Damage . | . . . Projectiles . | . . . Explosions . | . . . Melee . | . . . Knockbacks . | . . . Impact . | . . . Kinetic . | . . . Secondary . | . . . Self-Inflicted Damage . | . . . Shots . | . . . Rammed . | . . . Targets Rammed . | . . . Kicked . | . . . Crushed . | . . . Highest Temperature 43 | . 24 43 Average Temperature 14 | . 11 16 Received Heat Transfer 48 | . 21 27 Siege Activations . | . . . Robots Corrupted . | . . . Combat Hostiles . | . . . Parts Fried 2 | . 1 1 Impact Corruptions . | . . . Robots Melted . | . . . Combat Hostiles . | . . . Parts Melted . | . . . Heat Transferred 100 | . 100 . Parts Sabotaged . | . . . Parts Stolen . | . . . Parts Stripped . | . . . Power Chain Reactions 1 | . 1 . Alert | -11 -10 -10 ------- Run | Yrd Mat Min Peak Influence 118 | . 118 115 Initial 45 | . . 45 Average 52 | . 52 81 Maximum Alert Level . | . . . Low Security (%) 100 | 100 100 100 Level 1 . | . . . Level 2 . | . . . Level 3 . | . . . Level 4 . | . . . Level 5 . | . . . High Security . | . . . Max Security . | . . . Squads Dispatched 1 | . 1 . Investigation . | . . . Extermination . | . . . Reinforcement 1 | . 1 . Assault . | . . . Garrison . | . . . Intercept . | . . . Searches Triggered . | . . . Construction Impeded . | . . . Haulers Reinforced . | . . . Active Scanning Responses . | . . . Cargo Convoy Interrupts . | . . . Stealth | -11 -10 -10 --------- Run | Yrd Mat Min Distress Signals . | . . . Communications Jammed . | . . . Distress Signals . | . . . Times Spotted 23 | . 5 18 Peak Tracking Total 20 | . 2 20 Tactical Retreats 1 | . . 1 Traps | -11 -10 -10 ------- Run | Yrd Mat Min Traps Triggered . | . . . Indirectly . | . . . Trap Hack Attempts . | . . . Triggered . | . . . Disarmed . | . . . Reprogrammed . | . . . Reused . | . . . Traps Extracted . | . . . Installed . | . . . Triggered . | . . . Machines | -11 -10 -10 ---------- Run | Yrd Mat Min Machines Disabled . | . . . Max in Single Turn . | . . . Machines Repaired . | . . . Machines Dismantled . | . . . Machines Sabotaged . | . . . Overloaded Fab Kills . | . . . Hacking | -11 -10 -10 --------- Run | Yrd Mat Min Machines Accessed . | . . . Terminals . | . . . Fabricators . | . . . Repair Stations . | . . . Recycling Units . | . . . Scanalyzers . | . . . Garrison Access . | . . . Total Hacks . | . . . Successful . | . . . Failed . | . . . Catastrophic . | . . . Database Lockouts . | . . . Manual . | . . . Terminals . | . . . Fabricators . | . . . Repair Stations . | . . . Recycling Units . | . . . Scanalyzers . | . . . Garrison Access . | . . . Terminal Hacks . | . . . Fabricator Hacks . | . . . Repair Station Hacks . | . . . Recycling Unit Hacks . | . . . Scanalyzer . | . . . Garrison Access Hacks . | . . . Unauthorized Hacks . | . . . Terminals . | . . . Fabricators . | . . . Repair Stations . | . . . Recycling Units . | . . . Scanalyzers . | . . . Garrison Access . | . . . Data Cores Recovered . | . . . Used . | . . . Hacking Detections . | . . . Full Trace Events . | . . . Feedback Events . | . . . Feedback Blocked . | . . . Robot Schematics Acquired . | . . . Robots Built . | . . . Authchips . | . . . Time . | . . . Total Robot Build Rating . | . . . Part Schematics Acquired . | . . . Parts Built . | . . . Authchips . | . . . Time . | . . . Total Part Build Rating . | . . . Parts Repaired . | . . . Time . | . . . Parts Recycled . | . . . Recycled Matter . | . . . Retrieved Matter . | . . . Retrieved Components . | . . . Parts Scanalyzed . | . . . Part Schematics Acquired . | . . . Parts Damaged . | . . . Bothacking | -11 -10 -10 ------------ Run | Yrd Mat Min Used RIF Installer . | . . . Robots Hacked 1 | . . 1 Non-combat 1 | . . 1 Combat . | . . . Robot Hacks Applied 1 | . . 1 no_distress 1 | . . 1 Relay Couplers Released . | . . . Fabnet Peak Effective % . | . . . Robots Rewired . | . . . Allies Hacked . | . . . Hacks Repelled . | . . . Allies | -11 -10 -10 -------- Run | Yrd Mat Min Total Allies . | . . . Largest Group . | . . . Highest-Rated Group . | . . . Highest-Rated Ally . | . . . Total Orders . | . . . Ally Attacks . | . . . Total Damage . | . . . Kills . | . . . Allies Corrupted . | . . . Allies Melted . | . . . Intel | -11 -10 -10 ------- Run | Yrd Mat Min Robot Analysis Total . | . . . Derelict Logs Recovered 3 | . . 3 Drone Launches . | . . . Drone Recoveries . | . . . Exploration | -11 -10 -10 ------------- Run | Yrd Mat Min Turns Passed 555 | 82 321 152 Spaces Moved 505 | 56 262 187 Core 17 | 10 3 4 Treads . | . . . Legs 182 | 46 136 . Wheels . | . . . Hover 306 | . 123 183 Flight . | . . . Fastest Speed 50 | 50 56 56 Average Speed 89 | 121 102 61 Slowest Speed 250 | 150 250 200 Overloaded Moves . | . . . Propulsion Burnouts . | . . . Robots Hopped . | . . . Cave-ins Triggered . | . . . Exploration Rate (%) 21 | 4 25 35 Regions Visited 2 Branch Regions 1 Pre-discovered Areas 2 | . . 2 Known Exits Taken . | . . . Unknown Exits Taken 2 | 1 1 . Scrap Searched 1 | . . 1 Spaces Dug . | . . . Terrain Destroyed 24 | . 24 . Melee . | . . . Projectile . | . . . AOE 24 | . 24 . Terrain Rammed . | . . . Walls Destroyed . | . . . Machines Disabled . | . . . Actions | -11 -10 -10 --------- Run | Yrd Mat Min Total 580 | 67 296 217 Wait 8 | . 1 7 Move 503 | 55 261 187 Hop . | . . . Pick Up 14 | 7 4 3 Fast Attach 10 | 5 4 1 Attach . | . . . Detach 2 | . . 2 Swap 6 | . 3 3 Drop 12 | . 8 4 Fire 24 | . 15 9 Melee 1 | . . 1 Ram . | . . . Kick . | . . . Crush . | . . . Escape Stasis . | . . . Rewire . | . . . Trap . | . . . Miscellaneous . | . . . Route ------- -11/Scrapyard -10/Materials (discovered 2 exits: [*Min x2]) -10/Mines History --------- Turn | Location | Event 27 | -11/Scrapyard | Discovered new exit (range 16) 83 | -11/Scrapyard | Entered Materials 208 | -10/Materials | Discovered new exit (range 15) 264 | -10/Materials | Discovered new exit (range 16) 321 | -10/Materials | Build established: Mutant 404 | -10/Materials | Entered Mines 405 | -10/Mines | Learned location of Storage (-8) 445 | -10/Mines | Learned Materials stockpile data 448 | -10/Mines | Learned 2 Materials zone layouts 520 | -10/Mines | Assembled infested the area 536 | -10/Mines | Learned location of Zion (-7) 550 | -10/Mines | Core integrity fell below 50% 553 | -10/Mines | Core integrity fell below 20% 556 | -10/Mines | Destroyed by D-53 Grenadier with Mini Grenade Launcher Last Messages --------------- 00495_ Dropped Med. Laser. 00500_ Dropped Assault Rifle. 00501_ Dropped Datajack. 00506_ Acquired Datajack. 00508_ 70,IIDSBTR&C3#YLTD6U05Y JX C1OW 00510_ Acquired Med. Laser. 00520_ ALERT: Infestation in the mines, dispatching Demolisher response squad. [Achievement: Hunted] 00536_ Acquired derelict log, extracted data. World map updated: -7/Zion. 00543_ C-30 ARC bursts open, deploying its payload. 00543_ D-53 Grenadier unfolds itself. 00545_ Hover Unit destroyed. 00546_ Seismic Detector destroyed. 00548_ Hover Unit destroyed. 00551_ The unstable cave ceiling collapses. 00555_ System corrupted: Matter fused (-8). 00555_ The unstable cave ceiling collapses. 00556_ as-80732 destroyed. Map ----- +----------------------------------------------------+ | ?????# * #??????????????????????? | | ?????# ##############??????????????????????? | | ?????# #???????????????????????????????????? | | ?????# #???????????????????????????????????? | | ?????# #???????????????????????????????????? | | ?????# #???????????????????????????????????? | | ?????# #???????????????????????????????????? | | ?????#!%########?? ?????????????????????????? | | ?????#== #?? ?????????????????????????? | | ?????#%""" """ #?? ?????????????????????????? | | ?????#*!"" """ #?? ?????????????????????????? | | ?????# """ """ #?? ?????????????????????????? | | ?????# """ """ #?? ?????????????????????????? | | ?????# [ #?? ?????????????????????????? | | ?????###### ####?# #????????????????????????? | | ??????????# #????# #????????????????????????? | | ????#?????# #????# #????????????????????????? | | ????# ???# ###### #????????????????????????? | | ?### ?## ##=#????????????????????????? | | ? ##### ##%#????????????????????????? | | # #### ##|###??????????????????????? | | # #??????????????????????? | | ???????### a ###????????????????????? | | ?????????# #### #### ####?????????????????? | | ?????????# #??# ## % #####?????????????? | | ?????????# #??# # @ ##????????????? | | ?????????# #??# # #????????????? | | ????????## ##?# # # # ##???????????? | | ???????## ### ## dd #???????????? | | ???????# ## # ## r #???????????? | | ???????# ## #???????????? | | ??????## ####### # #???????????? | | ??????# ##?????#### # % #???????????? | | ?????# #?????????####### #??????????? | | ?????# #???????????????## #??????????? | | ?????##### #????????????????## #??????????? | | ?????????# #?????????????????? #?????????? | | ?????????# #?????????????????? #?????????? | | ?????????# #?????????????????? ?????????? | | ????????? %#?????????????????? ????????? | | ????????? "?????????????????? ####???????? | | ????????? ??????????????????####??????????? | | ????????? ????????????????????????????????? | | ????????? ????????????????????????????????? | | ?????????# ????????????????????????????????? | | ??????????##????????????????????????????????? | | ????????????????????????????????????????????? | | ????????????????????????????????????????????? | | ????????????????????????????????????????????? | | ????????????????????????????????????????????? | +----------------------------------------------------+ Best States ------------- Heat Dissipation 25 Energy Generation 14 Energy Capacity 250 Matter Stores 300 Matter Capacity 300 Sight Range 16 Terrain Scan Density 10 Evasion (%) 55 Item Schematics ----------------- None Robot Schematics ------------------ None Fabricated ------------ Nothing Alien Tech Used ----------------- None Achievements -------------- Hunted Challenges ------------ None Game ------ Seed FortressCoolingSuite Manual? 0 Play Time 00:08:45 Cumulative 7.6 hours Start 2024.10.02 @ 16:15:51 End 2024.10.02 @ 16:22:51 Sessions 1 Manual Loads 0 Difficulty Rogue Special Mode None Game No. 26 Rogue 26 Adventurer 0 Explorer 0 Win Type - Total 0 Types 0/0/0/0/0/0/0/0/0 Lore% 5 Gallery% 13 Achievement% 14 Wizard Run 0 Options --------- Layout 0 ASCII 0 Keyboard 1 Movement Numpad Keybinds 0 Fullscreen 1 Font 18/CogNarrow Map View 76x50 Zoom Use 0% Tactical HUD 1 Map Filters NONE Filters NONE Steam 1 RUN: f57473e8-7dc4-4b84-8db5-684e263a943e